bitfinex/quotes_BTCUSD_20250123
["timestamp","ask_amount","ask_price","bid_price","bid_amount"]
[1737594961884,0.395704,103130.0,103120.0,0.16802404]
[1737594962085,0.395704,103130.0,103120.0,0.4708002]
[1737594962426,0.395704,103130.0,103120.0,0.36234533]
[1737594962773,0.389704,103130.0,103120.0,0.36234533]
[1737594963206,0.390704,103130.0,103120.0,0.36234533]
[1737594964017,0.388704,103130.0,103120.0,0.36234533]
[1737594964224,0.389704,103130.0,103120.0,0.36234533]
[1737594969345,0.389704,103130.0,103120.0,0.16802404]
[1737594970414,0.389704,103130.0,103120.0,0.26499804]
[1737594971409,0.29274,103130.0,103120.0,0.26499804]
[1737594971624,0.29274,103130.0,103120.0,0.36234533]
[1737594972067,0.389704,103130.0,103120.0,0.36234533]
[1737594972412,0.29274,103130.0,103120.0,0.49084533]
[1737594972611,0.29274,103130.0,103120.0,0.6041002]
[1737594972851,0.29129122,103130.0,103120.0,0.6041002]
[1737594973055,0.29129122,103130.0,103120.0,0.62623419]
[1737594973230,0.29129122,103130.0,103120.0,0.97723419]
[1737594973430,0.29129122,103130.0,103120.0,1.08568906]
[1737594973431,0.27089822,103130.0,103120.0,1.08568906]
[1737594973631,0.03292213,103130.0,103120.0,1.08568906]
[1737594973856,0.03192213,103130.0,103120.0,1.08568906]
[1737594974058,0.00480001,103130.0,103120.0,1.08568906]
[1737594974258,0.00480001,103130.0,103120.0,1.08668906]
[1737594974578,0.00480001,103130.0,103120.0,0.97823419]
[1737594974738,0.00480001,103130.0,103120.0,1.08968906]
[1737594974946,0.00480001,103130.0,103120.0,0.98123419]
[1737594975139,0.00480001,103130.0,103120.0,1.08968906]
[1737594975464,0.00480001,103130.0,103120.0,0.98123419]
[1737594975888,0.00480001,103130.0,103120.0,0.95823419]
[1737594976126,0.00480001,103130.0,103120.0,0.65749799]
[1737594976560,0.00480001,103130.0,103120.0,0.65649799]
[1737594976744,0.00480001,103130.0,103120.0,0.63423419]
[1737594976963,0.00480001,103130.0,103120.0,0.63823419]
[1737594977353,0.00480001,103130.0,103120.0,0.63723419]
[1737594977708,0.00480001,103130.0,103120.0,0.63823419]
[1737594979112,0.00480001,103130.0,103120.0,0.43963419]
[1737594979492,0.00480001,103130.0,103120.0,0.3248002]
[1737594980017,0.00480001,103130.0,103120.0,0.4748002]
[1737594980816,0.00480001,103130.0,103120.0,0.4668002]
[1737594981048,0.00480001,103130.0,103120.0,0.4748002]
[1737594981761,0.00480001,103130.0,103120.0,0.4718002]
[1737594982025,0.10176401,103130.0,103120.0,0.35534533]
[1737594982224,0.1029761,103130.0,103120.0,0.36334533]
[1737594982434,0.1029761,103130.0,103120.0,0.36234533]
[1737594982647,0.1029761,103130.0,103120.0,0.36334533]
[1737594982971,0.1029761,103130.0,103120.0,0.16902404]
[1737594983166,0.1029761,103130.0,103120.0,0.17102404]
[1737594983300,0.1029761,103130.0,103120.0,0.16802404]
[1737594983527,0.1029761,103130.0,103120.0,0.16002404]
[1737594983737,0.2281761,103130.0,103120.0,0.01902404]
[1737594983941,0.10176401,103130.0,103120.0,0.01902404]
[1737594984140,0.10176401,103130.0,103120.0,0.16902404]
[1737594984535,0.10176401,103130.0,103120.0,0.16102404]
[1737594984739,0.10297619,103130.0,103120.0,0.16902404]
[1737594985203,0.10176401,103130.0,103120.0,0.26599804]
[1737594985362,0.10176401,103130.0,103120.0,0.37445291]
[1737594985561,0.00480001,103130.0,103120.0,0.4718002]
[1737594985865,0.10297612,103130.0,103120.0,0.4718002]
[1737594986297,0.00480001,103130.0,103120.0,0.4718002]
[1737594987090,0.00480001,103130.0,103120.0,0.50198601]
[1737594987287,0.00480001,103130.0,103120.0,0.58208601]
[1737594987494,0.00480001,103130.0,103120.0,1.06239341]
[1737594989291,0.00480001,103130.0,103120.0,0.58208601]
[1737594990435,0.00480001,103130.0,103120.0,0.58108601]
[1737594990593,0.00494241,103130.0,103120.0,0.58108601]
[1737594990829,0.00494241,103130.0,103120.0,0.58408601]
[1737594991652,0.00494241,103130.0,103120.0,0.58508601]
[1737594994428,0.00494241,103130.0,103120.0,1.27004828]
[1737594994661,0.00494241,103130.0,103120.0,1.57004828]
[1737594994864,0.00494241,103130.0,103120.0,1.89454828]
[1737594995655,0.00494241,103130.0,103120.0,1.89354828]
[1737594996016,0.00494241,103130.0,103120.0,1.89454828]
[1737594996240,0.00494241,103130.0,103120.0,1.89154828]
[1737594996584,0.00494241,103130.0,103120.0,1.89454828]
[1737594997493,0.00494241,103130.0,103120.0,1.89154828]
[1737594997494,0.00361946,103130.0,103120.0,1.89154828]
[1737594997698,0.00361946,103130.0,103120.0,1.89454828]
[1737594998099,0.00361946,103130.0,103120.0,1.89354828]
[1737594998329,0.00361946,103130.0,103120.0,1.89154828]
[1737594998550,0.00361946,103130.0,103120.0,1.89584852]
[1737594998931,0.00361946,103130.0,103120.0,1.89484852]
[1737594999135,0.00361946,103130.0,103120.0,1.89584852]
[1737594999646,0.00361946,103130.0,103120.0,1.89484852]
[1737595000146,0.00361946,103130.0,103120.0,1.89884852]
[1737595000777,0.00361946,103130.0,103120.0,1.57434852]
[1737595001308,0.00361946,103130.0,103120.0,1.57334852]
[1737595001511,0.00361946,103130.0,103120.0,1.57434852]
[1737595001949,0.00361946,103130.0,103120.0,1.25434852]
[1737595002154,0.00361946,103130.0,103120.0,1.57434852]
[1737595002394,0.00361946,103130.0,103120.0,1.56634852]
[1737595002605,0.00361946,103130.0,103120.0,1.57434852]
[1737595002807,0.00361946,103130.0,103120.0,1.46589365]
[1737595002939,0.00361946,103130.0,103120.0,1.57434852]
[1737595003376,0.00361946,103130.0,103120.0,1.57134852]
[1737595003750,0.00361946,103130.0,103120.0,1.57434852]
[1737595004165,0.00361946,103130.0,103120.0,1.57134852]
[1737595004360,0.00361946,103130.0,103120.0,1.57334852]
[1737595004538,0.00361946,103130.0,103120.0,1.57434852]
[1737595005174,0.00361946,103130.0,103120.0,1.24554852]
[1737595005396,0.00361946,103130.0,103120.0,1.08969365]
[1737595005597,0.00361946,103130.0,103120.0,1.09449365]
[1737595005874,0.00361946,103130.0,103120.0,1.11449365]
[1737595006234,0.00361946,103130.0,103120.0,1.52294852]
[1737595006639,0.00361946,103130.0,103120.0,1.52594852]
[1737595008944,0.00361946,103130.0,103120.0,1.08949365]
[1737595009145,0.00361946,103130.0,103120.0,1.41749365]
[1737595011282,0.00361946,103130.0,103120.0,1.38949365]
[1737595011486,0.00361946,103130.0,103120.0,1.41749365]
[1737595014440,0.00361946,103130.0,103120.0,0.98639365]
[1737595014641,0.00361946,103130.0,103120.0,0.98959365]
[1737595015651,0.00361946,103130.0,103120.0,0.99439365]
[1737595017351,0.00361946,103130.0,103120.0,1.07539365]
[1737595018074,0.00361946,103130.0,103120.0,0.99439365]
[1737595026764,0.00361946,103130.0,103120.0,1.12584852]
[1737595027598,0.00361946,103130.0,103120.0,1.01739365]
[1737595031620,0.00361946,103130.0,103120.0,1.12584852]
[1737595031826,0.00361946,103130.0,103120.0,1.01739365]
[1737595032279,0.00361946,103130.0,103120.0,1.14584852]
[1737595032547,0.00361946,103130.0,103120.0,1.27929864]
[1737595032548,0.21333846,103130.0,103120.0,1.27929864]
[1737595032752,0.21333846,103130.0,103120.0,1.27014852]
[1737595033176,0.11637346,103130.0,103120.0,1.27014852]
[1737595034238,0.05819446,103130.0,103120.0,1.27014852]
[1737595034450,0.01940846,103130.0,103120.0,1.27014852]
[1737595035088,1.546e-05,103130.0,103120.0,1.27014852]
[1737595035834,1.546e-05,103130.0,103120.0,1.26914852]
[1737595036029,1.546e-05,103130.0,103120.0,1.26614852]
[1737595036234,1.546e-05,103130.0,103120.0,1.27014852]
[1737595036447,1.546e-05,103130.0,103120.0,1.26714852]
[1737595036954,0.00015786,103130.0,103120.0,1.27014852]
[1737595037285,0.21333886,103130.0,103120.0,1.26914852]
[1737595037694,0.21333886,103130.0,103120.0,1.27014852]
[1737595038149,0.19394586,103130.0,103120.0,1.27014852]
[1737595038352,0.15515986,103130.0,103120.0,1.27014852]
[1737595038553,0.11637386,103130.0,103120.0,1.27014852]
[1737595039140,0.07758786,103130.0,103120.0,1.27014852]
[1737595039349,0.01940886,103130.0,103120.0,1.27014852]
[1737595040017,1.586e-05,103130.0,103120.0,1.27014852]
[1737595040226,0.0001424,103150.0,103140.0,0.571755]
[1737595040366,0.0001424,103150.0,103140.0,1.32072484]
[1737595040565,0.2909924,103150.0,103140.0,1.43423894]
[1737595042295,0.2909924,103150.0,103140.0,1.43823894]
[1737595044518,0.2909924,103150.0,103140.0,1.45784531]
[1737595044936,0.2909924,103150.0,103140.0,1.53404531]
[1737595045131,0.2909924,103150.0,103140.0,1.5435745]
[1737595045331,0.2909924,103150.0,103140.0,1.8680745]
[1737595047280,0.2909924,103150.0,103140.0,1.7718745]
[1737595047485,0.3667924,103150.0,103140.0,1.4520745]
[1737595047711,0.4137924,103150.0,103140.0,1.4568745]
[1737595048272,0.4137924,103150.0,103140.0,1.4558745]
[1737595048648,0.4137924,103150.0,103140.0,1.4538745]
[1737595049048,0.4137924,103150.0,103140.0,1.4568745]
[1737595050454,0.4137924,103150.0,103140.0,1.4520745]
[1737595050653,0.4137924,103150.0,103140.0,1.4568745]
[1737595051071,0.4137924,103150.0,103140.0,1.4520745]
[1737595051297,0.4137924,103150.0,103140.0,1.1323745]
[1737595052582,0.4137924,103150.0,103140.0,1.1275745]
[1737595052722,0.4137924,103150.0,103140.0,1.1323745]
[1737595052926,0.4137924,103150.0,103140.0,1.1275745]
[1737595054026,0.4137924,103150.0,103140.0,1.1323745]
[1737595055114,0.4137924,103150.0,103140.0,1.1275745]
[1737595057082,0.4137924,103150.0,103140.0,1.1323745]
[1737595064593,0.2909924,103150.0,103140.0,1.1323745]
[1737595065860,0.2909924,103150.0,103140.0,1.4753745]
[1737595066069,0.2909924,103150.0,103140.0,1.85532462]
[1737595066274,0.2909924,103150.0,103140.0,1.93412462]
[1737595066668,0.2909924,103150.0,103140.0,1.90899628]
[1737595067421,0.2909924,103150.0,103140.0,1.8786745]
[1737595069735,0.0819,103180.0,103170.0,0.251727]
[1737595069934,0.0819,103180.0,103170.0,0.98565684]
[1737595070136,0.0819,103180.0,103170.0,1.09911522]
[1737595070342,0.37267,103180.0,103170.0,1.09911522]
[1737595070974,0.37272052,103180.0,103170.0,1.09911522]
[1737595071512,0.37272052,103180.0,103170.0,1.10011522]
[1737595072343,0.37272052,103180.0,103170.0,1.10211522]
[1737595072549,0.29082052,103180.0,103170.0,1.12511522]
[1737595072743,0.29082052,103180.0,103170.0,1.12311522]
[1737595072979,0.29082052,103180.0,103170.0,1.12511522]
[1737595073327,0.29082052,103180.0,103170.0,1.12411522]
[1737595073586,0.29096302,103180.0,103170.0,1.12511522]
[1737595074859,0.37286302,103180.0,103170.0,0.62180782]
[1737595075879,0.37286302,103180.0,103170.0,0.61700782]
[1737595076060,0.37286302,103180.0,103170.0,0.62180782]
[1737595077531,0.42216302,103180.0,103170.0,0.50059295]
[1737595077736,0.42216302,103180.0,103170.0,0.47836714]
[1737595078545,0.42216302,103180.0,103170.0,0.47040714]
[1737595078747,0.42216302,103180.0,103170.0,0.47636714]
[1737595079148,0.42216302,103180.0,103170.0,0.47836714]
[1737595079535,0.42216302,103180.0,103170.0,0.48216714]
[1737595079915,0.42216302,103180.0,103170.0,0.51333885]
[1737595080435,0.42216302,103180.0,103170.0,0.50853885]
[1737595081642,0.42216302,103180.0,103170.0,0.51831136]
[1737595081848,0.42216302,103180.0,103170.0,0.52311136]
[1737595082266,0.42216302,103180.0,103170.0,0.63156623]
[1737595082478,0.29096302,103180.0,103170.0,0.65456623]
[1737595083946,0.29096302,103180.0,103170.0,0.95456623]
[1737595084680,0.29096302,103180.0,103170.0,0.65456623]
[1737595084926,0.29096302,103180.0,103170.0,0.95456623]
[1737595085707,0.41956302,103180.0,103170.0,0.52311136]
[1737595087110,0.41956302,103180.0,103170.0,0.63156623]
[1737595087431,0.29096302,103180.0,103170.0,0.93156623]
[1737595087595,0.29096302,103180.0,103170.0,0.92676623]
[1737595087796,0.29096302,103180.0,103170.0,0.93156623]
[1737595088228,0.29096302,103180.0,103170.0,0.95456623]
[1737595088434,0.29096302,103180.0,103170.0,1.03206623]
[1737595089905,0.29096302,103180.0,103170.0,1.02906623]
[1737595090206,0.29096302,103180.0,103170.0,1.03106623]
[1737595090384,0.29096302,103180.0,103170.0,1.03206623]
[1737595090700,0.29096302,103180.0,103170.0,1.03106623]
[1737595091063,0.29096302,103180.0,103170.0,1.03206623]
[1737595091873,0.29096302,103180.0,103170.0,1.05206623]
[1737595093929,0.29096302,103180.0,103170.0,1.03206623]
[1737595094177,0.29096302,103180.0,103170.0,0.65456623]
[1737595094383,0.29096302,103180.0,103170.0,0.54611136]
[1737595094585,0.29096302,103180.0,103170.0,0.65456623]
[1737595097351,0.29096302,103180.0,103170.0,0.75206623]
[1737595098721,0.29096302,103180.0,103170.0,0.79806623]
[1737595100741,0.29096302,103180.0,103170.0,0.78839176]
[1737595101576,0.29096302,103180.0,103170.0,0.99939176]
[1737595101810,0.29096302,103180.0,103170.0,0.80547689]
[1737595102025,0.33816302,103180.0,103170.0,0.91709176]
[1737595102241,0.33816302,103180.0,103170.0,0.50863689]
[1737595102449,0.33816302,103180.0,103170.0,0.61709176]
[1737595102870,0.33816302,103180.0,103170.0,0.60913176]
[1737595103072,0.33816302,103180.0,103170.0,0.61709176]
[1737595103737,0.41696302,103180.0,103170.0,0.50863689]
[1737595104570,0.41696302,103180.0,103170.0,0.25018202]
[1737595104803,0.41696302,103180.0,103170.0,0.35067689]
[1737595105006,0.41696302,103180.0,103170.0,0.35863689]
[1737595105185,0.41696302,103180.0,103170.0,0.50863689]
[1737595105342,0.41696302,103180.0,103170.0,0.50067689]
[1737595105549,0.41696302,103180.0,103170.0,0.50863689]
[1737595107521,0.41696302,103180.0,103170.0,0.50563689]
[1737595107869,0.41696302,103180.0,103170.0,0.50863689]
[1737595108496,0.51388102,103180.0,103170.0,0.50067689]
[1737595108698,0.41696302,103180.0,103170.0,0.50863689]
[1737595109816,0.41696302,103180.0,103170.0,0.39222202]
[1737595110018,0.55908102,103180.0,103170.0,0.00800351]
[1737595110221,0.55908102,103180.0,103170.0,0.02563798]
[1737595110423,1.01023589,103180.0,103170.0,0.01767798]
[1737595110604,0.0652,103170.0,103160.0,0.00029904]
[1737595110780,0.58010894,103170.0,103160.0,0.01257988]
[1737595110983,0.533697,103170.0,103160.0,0.01257988]
[1737595111300,0.856397,103170.0,103160.0,0.01257988]
[1737595111497,1.04219916,103170.0,103160.0,0.01257988]
[1737595111683,0.93374429,103170.0,103160.0,0.01257988]
[1737595111934,0.0652,103150.0,103140.0,0.09465931]
[1737595112138,0.55708304,103150.0,103140.0,0.09465931]
[1737595112358,0.55587087,103150.0,103140.0,0.09465931]
[1737595113220,0.55587087,103150.0,103140.0,0.09565931]
[1737595113422,0.447416,103150.0,103140.0,0.09565931]
[1737595113819,0.55587087,103150.0,103140.0,0.09465931]
[1737595114027,0.65421816,103150.0,103140.0,0.09465931]
[1737595114476,0.69961986,103150.0,103140.0,0.08669931]
[1737595114681,0.222955,103140.0,103130.0,0.00825925]
[1737595114884,0.71952716,103140.0,103130.0,0.00825925]
[1737595115084,0.61107229,103140.0,103130.0,0.00825925]
[1737595115644,0.533725,103140.0,103130.0,0.00825925]
[1737595116055,0.533725,103140.0,103130.0,0.00830978]
[1737595117506,0.513725,103140.0,103130.0,0.00830978]
[1737595117914,0.558925,103140.0,103130.0,0.10527378]
[1737595118236,0.513725,103140.0,103130.0,0.10527378]
[1737595118660,0.558925,103140.0,103130.0,0.10527378]
[1737595118931,0.513725,103140.0,103130.0,0.10527378]
[1737595119154,0.558925,103140.0,103130.0,0.10527378]
[1737595119310,0.513725,103140.0,103130.0,0.10527378]
[1737595119534,0.558925,103140.0,103130.0,0.00830978]
[1737595120354,0.513725,103140.0,103130.0,0.10527378]
[1737595120970,0.558925,103140.0,103130.0,0.00830978]
[1737595123023,0.578925,103140.0,103130.0,0.00830978]
[1737595123723,0.533725,103140.0,103130.0,0.00830978]
[1737595125338,0.537725,103140.0,103130.0,0.00034978]
[1737595125557,0.537725,103140.0,103130.0,0.00830978]
[1737595125558,0.80367032,103140.0,103130.0,0.00830978]
[1737595125807,0.80367032,103140.0,103130.0,0.00034978]
[1737595125808,0.72352716,103140.0,103130.0,0.00034978]
[1737595126537,0.71952716,103140.0,103130.0,0.00034978]
[1737595126790,0.72352716,103140.0,103130.0,0.00034978]
[1737595127049,0.72052716,103140.0,103130.0,0.00034978]
[1737595127517,0.74652716,103140.0,103130.0,0.00034978]
[1737595127758,0.74252716,103140.0,103130.0,0.00034978]
[1737595127966,0.75252716,103140.0,103130.0,0.00134978]
[1737595128171,0.74868657,103140.0,103130.0,0.00134978]
[1737595128975,0.7581997,103140.0,103130.0,0.00134978]
[1737595129631,0.92154699,103140.0,103130.0,0.00034978]
[1737595129841,0.91854699,103140.0,103130.0,0.00034978]
[1737595130043,0.92754699,103140.0,103130.0,0.00134978]
[1737595130219,0.92354699,103140.0,103130.0,0.00034978]
[1737595130422,1.03200186,103140.0,103130.0,0.00134978]
[1737595130621,0.92754699,103140.0,103130.0,0.00134978]
[1737595130821,1.03600186,103140.0,103130.0,0.00134978]
[1737595131030,0.93054699,103140.0,103130.0,0.00134978]
[1737595131382,0.93068949,103140.0,103130.0,0.00134978]
[1737595131606,1.03914436,103140.0,103130.0,0.00134978]
[1737595131782,1.18914436,103140.0,103130.0,0.00134978]
[1737595133747,1.13914436,103140.0,103130.0,0.00134978]
[1737595137067,1.14740336,103140.0,103130.0,7.8e-07]
[1737595140249,0.55671887,103130.0,103120.0,0.00025982]
[1737595140524,0.70141345,103130.0,103120.0,0.00025982]
[1737595140711,0.99218345,103130.0,103120.0,0.00025982]
[1737595141700,0.99818345,103130.0,103120.0,0.00125982]
[1737595142414,1.00018345,103130.0,103120.0,0.00125982]
[1737595142600,1.00018345,103130.0,103120.0,8.2e-07]
[1737595143156,0.096974,103120.0,103110.0,8.6e-07]
[1737595143354,0.0652,103080.0,103070.0,0.09634776]
[1737595143560,0.45419485,103080.0,103070.0,0.10435829]
[1737595143755,0.452982,103080.0,103070.0,0.10435829]
[1737595144302,0.452982,103080.0,103070.0,0.16579829]
[1737595144476,0.452982,103080.0,103070.0,0.17375829]
[1737595145065,0.452982,103080.0,103070.0,0.16579829]
[1737595145264,0.452982,103080.0,103070.0,0.17375829]
[1737595146261,0.453982,103080.0,103070.0,0.17375829]
[1737595146668,0.455982,103080.0,103070.0,0.17375829]
[1737595146788,0.455982,103080.0,103070.0,0.25435829]
[1737595147981,0.435982,103080.0,103070.0,0.25435829]
[1737595148193,0.435982,103080.0,103070.0,0.35137929]
[1737595148397,0.435982,103080.0,103070.0,0.50973416]
[1737595149048,0.434982,103080.0,103070.0,0.40127929]
[1737595149227,0.434982,103080.0,103070.0,0.25127929]
[1737595149431,0.33797,103080.0,103070.0,0.34862658]
[1737595149632,0.33797,103080.0,103070.0,0.45708145]
[1737595149993,0.33597,103080.0,103070.0,0.34862658]
[1737595150378,0.33597,103080.0,103070.0,0.34962658]
[1737595150724,0.432982,103080.0,103070.0,0.34962658]
[1737595150923,0.29077,103080.0,103070.0,0.60808145]
[1737595151593,0.29077,103080.0,103070.0,0.63820754]
[1737595151906,0.33597,103080.0,103070.0,0.60808145]
[1737595152057,0.29077,103080.0,103070.0,0.60808145]
[1737595152260,0.33597,103080.0,103070.0,0.49962658]
[1737595152523,0.432982,103080.0,103070.0,0.49962658]
[1737595153255,0.33597,103080.0,103070.0,0.49962658]
[1737595153449,0.33597,103080.0,103070.0,0.60808145]
[1737595154809,0.29077,103080.0,103070.0,0.60808145]
[1737595155150,0.29077,103080.0,103070.0,0.7696714]
[1737595155692,0.29077,103080.0,103070.0,0.66121653]
[1737595155862,0.29077,103080.0,103070.0,0.67111152]
[1737595156381,0.29077,103080.0,103070.0,0.67411152]
[1737595156522,0.29077,103080.0,103070.0,0.67311152]
[1737595156902,0.29077,103080.0,103070.0,0.69263267]
[1737595157520,0.29077,103080.0,103070.0,0.69363267]
[1737595157943,0.29077,103080.0,103070.0,0.80688754]
[1737595158156,0.29077,103080.0,103070.0,1.10688754]
[1737595158367,0.193268,103080.0,103070.0,1.12688754]
[1737595159061,0.193268,103080.0,103070.0,1.12588754]
[1737595159307,0.193268,103080.0,103070.0,1.12388754]
[1737595159780,0.193268,103080.0,103070.0,1.12488754]
[1737595160198,0.193268,103080.0,103070.0,1.12588754]
[1737595166574,0.11566,103080.0,103070.0,1.12588754]
[1737595166779,0.11566,103080.0,103070.0,1.11792754]
[1737595166979,0.11566,103080.0,103070.0,1.12588754]
[1737595170531,0.11566,103080.0,103070.0,0.80588754]
[1737595170744,0.11566,103080.0,103070.0,1.10588754]
[1737595170948,0.11566,103080.0,103070.0,0.96647267]
[1737595171148,0.11566,103080.0,103070.0,1.08288754]
[1737595171360,0.11566,103080.0,103070.0,1.10588754]
[1737595171555,0.11566,103080.0,103070.0,1.09792754]
[1737595171732,0.11566,103080.0,103070.0,1.10588754]
[1737595172342,0.11566,103080.0,103070.0,1.09792754]
[1737595172545,0.11566,103080.0,103070.0,1.10588754]
[1737595175350,0.11566,103080.0,103070.0,1.12588754]
[1737595175351,0.01865,103080.0,103070.0,1.12588754]
[1737595175542,0.01865,103080.0,103070.0,1.15621056]
[1737595175722,0.01865,103080.0,103070.0,1.12588754]
[1737595178503,0.0187925,103080.0,103070.0,1.12588754]
[1737595178707,0.0187925,103080.0,103070.0,1.21892754]
[1737595181702,0.0001425,103110.0,103080.0,0.56]
[1737595181904,0.0001425,103110.0,103100.0,0.66645003]
[1737595182118,0.0001425,103110.0,103100.0,1.15155743]
[1737595182292,0.0001425,103110.0,103100.0,1.18169251]
[1737595182503,0.2911125,103110.0,103100.0,1.18169251]
[1737595183293,0.2911125,103110.0,103100.0,1.07323764]
[1737595183651,0.2911125,103110.0,103100.0,1.18169251]
[1737595183915,0.2911125,103110.0,103100.0,1.18369251]
[1737595184710,0.2911125,103110.0,103100.0,0.96623764]
[1737595184863,0.2911125,103110.0,103100.0,0.46375516]
[1737595185709,0.2911125,103110.0,103100.0,0.49392976]
[1737595187561,0.2911125,103110.0,103100.0,0.50360214]
[1737595188898,0.2911125,103110.0,103100.0,0.51304618]
[1737595210842,0.2911125,103110.0,103100.0,0.59384618]
[1737595211454,0.2911125,103110.0,103100.0,0.70230105]
[1737595211821,0.2911125,103110.0,103100.0,0.59384618]
[1737595211954,0.2911125,103110.0,103100.0,0.51304618]
[1737595212163,0.3700125,103110.0,103100.0,0.51304618]
[1737595212346,0.5574955,103110.0,103100.0,0.29963831]
[1737595212550,0.5774955,103110.0,103100.0,0.05080698]
[1737595212751,0.5774955,103110.0,103100.0,0.17063238]
[1737595213619,0.5774955,103110.0,103100.0,0.16963238]
[1737595213834,0.5774955,103110.0,103100.0,0.16863238]
[1737595214240,0.5804955,103110.0,103100.0,0.16863238]
[1737595214442,0.5804955,103110.0,103100.0,0.16763238]
[1737595214645,0.5814955,103110.0,103100.0,0.16763238]
[1737595218393,0.5814955,103110.0,103100.0,0.26462538]
[1737595218600,0.5814955,103110.0,103100.0,0.37308025]
[1737595219434,0.5814955,103110.0,103100.0,0.27608725]
[1737595219782,0.5814955,103110.0,103100.0,0.26462538]
[1737595220640,0.4645125,103110.0,103100.0,0.47042754]
[1737595221190,0.5614955,103110.0,103100.0,0.47042754]
[1737595223065,0.5614955,103110.0,103100.0,0.36197267]
[1737595223268,0.5614955,103110.0,103100.0,0.16763238]
[1737595223466,0.5814955,103110.0,103100.0,0.01763238]
[1737595223663,0.9041955,103110.0,103100.0,0.01763238]
[1737595224384,0.8841955,103110.0,103100.0,0.01763238]
[1737595224545,0.9041955,103110.0,103100.0,0.01763238]
[1737595224747,0.8589955,103110.0,103100.0,0.00967238]
[1737595224987,0.8589955,103110.0,103100.0,0.01763238]
[1737595227873,0.86864606,103110.0,103100.0,0.01763238]
[1737595229819,0.73174822,103110.0,103100.0,0.00967238]
[1737595230927,0.72874822,103110.0,103100.0,0.00967238]
[1737595231134,0.62329335,103110.0,103100.0,0.00967238]
[1737595231330,0.5162955,103110.0,103100.0,0.12608725]
[1737595231548,0.2921125,103110.0,103100.0,0.47042754]
[1737595231782,0.3011125,103110.0,103100.0,0.47142754]
[1737595232103,0.3011125,103110.0,103100.0,0.47042754]
[1737595232104,0.2911125,103110.0,103100.0,0.47042754]
[1737595232306,0.2941125,103110.0,103100.0,0.47042754]
[1737595232474,0.3001125,103110.0,103100.0,0.47142754]
[1737595232680,0.2911125,103110.0,103100.0,0.47042754]
[1737595234756,0.2911125,103110.0,103100.0,1.03203494]
[1737595234954,0.2911125,103110.0,103100.0,1.06224716]
[1737595235263,0.2911125,103110.0,103100.0,0.50063976]
[1737595235635,0.2911125,103110.0,103100.0,0.51009931]
[1737595235840,0.2911125,103110.0,103100.0,0.51409931]
[1737595236039,0.2911125,103110.0,103100.0,0.48088709]
[1737595236242,0.2911125,103110.0,103100.0,0.51009912]
[1737595236604,0.2911125,103110.0,103100.0,0.99140652]
[1737595237050,0.2911125,103110.0,103100.0,1.07270652]
[1737595237475,0.2911125,103110.0,103100.0,1.07470652]
[1737595239332,0.2911125,103110.0,103100.0,0.59439912]
[1737595239534,0.2911125,103110.0,103100.0,0.56418709]
[1737595240591,0.4645955,103110.0,103100.0,0.21497267]
[1737595240792,0.5097955,103110.0,103100.0,0.21497267]
[1737595241173,0.5097955,103110.0,103100.0,0.47342754]
[1737595241371,0.4128125,103110.0,103100.0,0.47342754]
[1737595241581,0.3676125,103110.0,103100.0,0.47342754]
[1737595241783,0.2911125,103110.0,103100.0,0.47042754]
[1737595242352,0.2911125,103110.0,103100.0,0.95073494]
[1737595242780,0.2911125,103110.0,103100.0,0.98095275]
[1737595243895,0.2911125,103110.0,103100.0,0.98195275]
[1737595244316,0.2911125,103110.0,103100.0,1.06325275]
[1737595244881,0.2911125,103110.0,103100.0,0.98195275]
[1737595245081,0.2911125,103110.0,103100.0,0.98395275]
[1737595255926,0.2911125,103110.0,103100.0,1.00695275]
[1737595262590,0.2911125,103110.0,103100.0,1.19300762]
[1737595262786,0.2911125,103110.0,103100.0,1.19780762]
[1737595262979,0.2911125,103110.0,103100.0,1.29585898]
[1737595263192,0.2911125,103110.0,103100.0,1.59585898]
[1737595263596,0.2911125,103110.0,103100.0,1.61585898]
[1737595263920,0.117,103110.0,103100.0,1.61385898]
[1737595264120,0.039412,103110.0,103100.0,1.58931398]
[1737595264323,0.020015,103110.0,103100.0,1.59231398]
[1737595264539,0.0001425,103130.0,103120.0,0.694474]
[1737595264739,0.0001425,103130.0,103120.0,1.42047375]
[1737595264917,0.0001425,103130.0,103120.0,1.86263679]
[1737595265119,0.2910525,103130.0,103120.0,1.86263679]
[1737595266917,0.2910525,103130.0,103120.0,1.88263679]
[1737595267131,0.2910525,103130.0,103120.0,1.88463679]
[1737595267340,0.2910525,103130.0,103120.0,1.91304315]
[1737595267799,0.2910525,103130.0,103120.0,1.88463679]
[1737595268961,0.2910525,103130.0,103120.0,1.88263679]
[1737595269569,0.2910525,103130.0,103120.0,1.88463679]
[1737595270395,0.2910525,103130.0,103120.0,1.90356381]
[1737595270573,0.2910525,103130.0,103120.0,1.77510894]
[1737595270801,0.2910525,103130.0,103120.0,1.78302894]
[1737595271767,0.2910525,103130.0,103120.0,1.89148381]
[1737595273175,0.2910525,103130.0,103120.0,1.90096804]
[1737595274516,0.2910525,103130.0,103120.0,1.89006792]
[1737595275256,0.2910525,103130.0,103120.0,1.91006792]
[1737595281688,0.2910525,103130.0,103120.0,1.90526792]
[1737595281869,0.2910525,103130.0,103120.0,1.91006792]
[1737595282279,0.2910525,103130.0,103120.0,1.91036696]
[1737595284585,0.2910525,103130.0,103120.0,1.65741209]
[1737595284993,0.2910525,103130.0,103120.0,1.35741209]
[1737595285174,0.2910525,103130.0,103120.0,1.65741209]
[1737595285592,0.2910525,103130.0,103120.0,1.89646696]
[1737595286417,0.2910525,103130.0,103120.0,1.18259221]
[1737595286596,0.3407525,103130.0,103120.0,1.19051221]
[1737595287242,0.3407525,103130.0,103120.0,1.33610404]
[1737595288144,0.3407525,103130.0,103120.0,1.33410404]
[1737595288345,0.2910525,103130.0,103120.0,1.36190404]
[1737595288517,0.2910525,103130.0,103120.0,1.36490404]
[1737595288719,0.2910525,103130.0,103120.0,1.77135891]
[1737595289068,0.2910525,103130.0,103120.0,1.77335891]
[1737595292068,0.2910525,103130.0,103120.0,1.90395891]
[1737595294152,0.2910525,103130.0,103120.0,1.92395891]
[1737595295369,0.2910525,103130.0,103120.0,1.27782426]
[1737595304368,0.2910525,103130.0,103120.0,1.25782426]
[1737595304606,0.2910525,103130.0,103120.0,1.17492426]
[1737595304849,0.2910525,103130.0,103120.0,1.16700426]
[1737595305048,0.2910525,103130.0,103120.0,1.17492426]
[1737595305466,0.2910525,103130.0,103120.0,1.36490404]
[1737595305738,0.2910525,103130.0,103120.0,1.66490404]
[1737595306235,0.2716595,103130.0,103120.0,1.79335891]
[1737595306492,0.23926183,103130.0,103120.0,1.87235891]
[1737595307201,0.23926183,103130.0,103120.0,1.87135891]
[1737595307446,0.23926183,103130.0,103120.0,1.87235891]
[1737595308673,0.23926183,103130.0,103120.0,1.87035891]
[1737595308904,0.23926183,103130.0,103120.0,1.87235891]
[1737595310927,0.23926183,103130.0,103120.0,1.96535891]
[1737595311837,0.36626183,103130.0,103120.0,1.81647746]
[1737595312109,0.36626183,103130.0,103120.0,1.83947746]